bitfinex-derivatives/quotes_BTCF0:USTF0_20250922
["timestamp","ask_amount","ask_price","bid_price","bid_amount"]
[1758502888664,0.41561,114420.0,114410.0,0.9938012]
[1758502888865,0.41779254,114420.0,114410.0,1.51404308]
[1758502889363,0.41779254,114420.0,114410.0,1.2438012]
[1758502889764,0.3939,114420.0,114410.0,1.2438012]
[1758502890561,0.0331,114420.0,114410.0,1.51404308]
[1758502890868,0.0331,114420.0,114410.0,1.87484308]
[1758502891170,0.0331,114420.0,114410.0,1.51404308]
[1758502891465,0.0331,114420.0,114410.0,1.2438012]
[1758502891966,0.0331,114420.0,114410.0,1.51404308]
[1758502892167,0.66561,114420.0,114410.0,0.03902]
[1758502892361,0.93585188,114420.0,114410.0,0.90594]
[1758502892667,0.66561,114420.0,114410.0,0.90634]
[1758502892966,0.66561,114420.0,114410.0,0.90594]
[1758502893161,0.41561,114420.0,114410.0,0.90634]
[1758502893358,0.41561,114420.0,114410.0,0.9936814]
[1758502893562,0.41561,114420.0,114410.0,1.51392328]
[1758502893563,0.3939,114420.0,114410.0,1.51392328]
[1758502893767,0.0331,114420.0,114410.0,1.51392328]
[1758502894359,0.3939,114420.0,114410.0,1.2436814]
[1758502894565,0.3939,114420.0,114410.0,0.3763614]
[1758502894866,0.3939,114420.0,114410.0,0.9935614]
[1758502895068,0.3939,114420.0,114410.0,1.2431614]
[1758502895069,0.0331,114420.0,114410.0,1.2431614]
[1758502895370,0.0331,114420.0,114410.0,1.2435614]
[1758502895562,0.3939,114420.0,114410.0,0.3763614]
[1758502895756,0.0331,114420.0,114410.0,1.2435214]
[1758502895959,0.3939,114420.0,114410.0,1.2435214]
[1758502896570,0.3939,114420.0,114410.0,0.3763614]
[1758502896763,0.41561,114420.0,114410.0,0.3763614]
[1758502896959,0.3939,114420.0,114410.0,0.9930816]
[1758502897372,0.0331,114420.0,114410.0,0.9930816]
[1758502897564,0.0331,114420.0,114410.0,1.26372348]
[1758502897965,0.0331,114420.0,114410.0,1.51372348]
[1758502898565,0.3939,114420.0,114410.0,0.1263616]
[1758502898867,0.41561,114420.0,114410.0,0.9934016]
[1758502899071,0.3939,114420.0,114410.0,0.9934016]
[1758502901371,0.41561,114420.0,114410.0,0.03902]
[1758502901673,0.41561,114420.0,114410.0,0.9932416]
[1758502902573,0.0331,114420.0,114410.0,0.9932416]
[1758502903065,0.3939,114420.0,114410.0,0.9932416]
[1758502903269,0.41561,114420.0,114410.0,0.1263616]
[1758502903570,0.41561,114420.0,114410.0,0.90578]
[1758502903769,0.41561,114420.0,114410.0,0.1263616]
[1758502903967,0.41561,114420.0,114410.0,0.03862]
[1758502904169,0.93585188,114420.0,114410.0,0.90574]
[1758502904470,0.66561,114420.0,114410.0,0.03902]
[1758502904770,1.09197188,114420.0,114410.0,0.003]
[1758502904964,1.11398173,114420.0,114410.0,0.0034]
[1758502905168,1.11398173,114420.0,114410.0,0.003]
[1758502905374,1.11398173,114420.0,114410.0,0.0034]
[1758502905872,1.98062173,114420.0,114410.0,0.0034]
[1758502906462,1.71037985,114420.0,114410.0,0.0034]
[1758502906668,1.98058173,114420.0,114410.0,0.0034]
[1758502908071,1.11398173,114420.0,114410.0,0.0034]
[1758502908475,1.98046173,114420.0,114410.0,0.0034]
[1758502908876,1.98046173,114420.0,114410.0,0.003]
[1758502909080,1.11398173,114420.0,114410.0,0.0034]
[1758502909274,1.73042173,114420.0,114410.0,0.0034]
[1758502910378,1.46017985,114420.0,114410.0,0.0034]
[1758502910582,1.73042173,114420.0,114410.0,0.003]
[1758502910879,1.73042173,114420.0,114410.0,0.0034]
[1758502912480,1.98042173,114420.0,114410.0,0.0034]
[1758502912879,1.98042173,114420.0,114390.0,0.01437]
[1758502912880,2.01133683,114420.0,114390.0,0.0009]
[1758502913174,0.02171,114390.0,114380.0,0.03537]
[1758502913369,0.65285188,114390.0,114380.0,0.03527]
[1758502913573,0.65285188,114390.0,114380.0,0.03567]
[1758502914281,0.38061,114390.0,114380.0,0.03567]
[1758502914780,0.38061,114390.0,114380.0,0.1230345]
[1758502915083,0.38061,114390.0,114380.0,0.03767]
[1758502915084,0.40261,114390.0,114380.0,0.03767]
[1758502915676,0.40961,114390.0,114380.0,0.03867]
[1758502916278,0.40961,114390.0,114380.0,0.1260345]
[1758502916479,0.3899,114390.0,114380.0,0.64627638]
[1758502916681,0.3899,114390.0,114380.0,0.3760345]
[1758502917182,0.3899,114390.0,114380.0,0.64627638]
[1758502917382,0.46066081,114390.0,114380.0,0.3760345]
[1758502918675,0.09986081,114390.0,114380.0,0.64627638]
[1758502919178,0.46066081,114390.0,114380.0,0.1260345]
[1758502919380,0.46066081,114390.0,114380.0,0.9919945]
[1758502920179,0.46066081,114390.0,114380.0,0.1260345]
[1758502920481,0.48368081,114390.0,114380.0,0.1260345]
[1758502920680,0.46066081,114390.0,114380.0,0.9919145]
[1758502920876,0.48368081,114390.0,114380.0,0.9919145]
[1758502921186,0.48368081,114390.0,114380.0,0.90451]
[1758502921484,0.46066081,114390.0,114380.0,0.9914745]
[1758502921680,0.46066081,114390.0,114380.0,0.1260345]
[1758502921984,0.48368081,114390.0,114380.0,0.9918345]
[1758502922675,0.48368081,114390.0,114380.0,0.9917545]
[1758502922880,0.48368081,114390.0,114380.0,0.90439]
[1758502923280,0.75392269,114390.0,114380.0,0.03867]
[1758502923482,0.75392269,114390.0,114380.0,0.03827]
[1758502923681,0.75392269,114390.0,114380.0,0.03867]
[1758502924586,0.48368081,114390.0,114380.0,0.03867]
[1758502926583,0.75392269,114390.0,114380.0,0.03867]
[1758502927590,0.72392269,114390.0,114380.0,0.03867]
[1758502927889,0.45368081,114390.0,114380.0,0.1260345]
[1758502928289,0.43066081,114390.0,114380.0,0.1260345]
[1758502928491,0.43066081,114390.0,114380.0,0.64627638]
[1758502928695,0.43066081,114390.0,114380.0,0.3760345]
[1758502928887,0.45368081,114390.0,114380.0,0.3760345]
[1758502929191,0.43066081,114390.0,114380.0,0.71652716]
[1758502930688,0.43066081,114390.0,114380.0,0.3760345]
[1758502930885,0.43066081,114390.0,114380.0,0.71652716]
[1758502931085,0.43066081,114390.0,114380.0,0.62916266]
[1758502931291,0.43066081,114390.0,114380.0,0.28867]
[1758502931491,0.43066081,114390.0,114380.0,0.3760345]
[1758502931684,0.43066081,114390.0,114380.0,1.2412345]
[1758502931885,0.45292081,114390.0,114380.0,0.3760345]
[1758502932085,0.45292081,114390.0,114380.0,0.90387]
[1758502932286,0.45292081,114390.0,114380.0,0.03867]
[1758502932486,0.79341347,114390.0,114380.0,0.90347]
[1758502932686,0.79341347,114390.0,114380.0,0.90387]
[1758502933196,0.79341347,114390.0,114380.0,0.90383]
[1758502933492,0.79341347,114390.0,114380.0,0.90379]
[1758502933792,0.45292081,114390.0,114380.0,0.03867]
[1758502933984,0.79341347,114390.0,114380.0,0.03867]
[1758502934386,1.04341347,114390.0,114380.0,0.03827]
[1758502934594,1.04341347,114390.0,114380.0,0.03867]
[1758502935588,0.70292081,114390.0,114380.0,0.1260345]
[1758502935893,0.43066081,114390.0,114380.0,0.1260345]
[1758502936097,0.45292081,114390.0,114380.0,0.1260345]
[1758502936600,0.43066081,114390.0,114380.0,0.46652716]
[1758502936993,0.43066081,114390.0,114380.0,0.71652716]
[1758502939199,0.3608,114400.0,114390.0,0.1243769]
[1758502939393,0.3608,114400.0,114390.0,1.32966956]
[1758502939696,0.07015361,114400.0,114390.0,1.32966956]
[1758502939893,0.3608,114410.0,114400.0,0.1243692]
[1758502940098,0.3608,114410.0,114400.0,0.46486186]
[1758502940507,0.3608,114410.0,114400.0,0.71486186]
[1758502941597,0.3608,114410.0,114400.0,1.2390092]
[1758502941900,0.38306,114410.0,114400.0,0.9890092]
[1758502942090,0.38306,114410.0,114400.0,0.03702]
[1758502942285,0.72355266,114410.0,114400.0,0.9889692]
[1758502942485,0.38306,114410.0,114400.0,0.9893692]
[1758502942900,0.39906,114410.0,114400.0,0.9893692]
[1758502943897,0.46849479,114410.0,114400.0,0.9893692]
[1758502944289,0.46849479,114410.0,114400.0,0.03742]
[1758502944498,0.46849479,114410.0,114400.0,0.9888892]
[1758502944697,0.46849479,114410.0,114400.0,0.0004]
[1758502944698,0.47961479,114410.0,114400.0,0.0004]
[1758502944900,0.47961479,114410.0,114390.0,0.01382]
[1758502944901,1.07010745,114410.0,114390.0,0.01382]
[1758502945202,0.38319,114400.0,114390.0,0.63257]
[1758502945600,0.38319,114400.0,114390.0,0.03665]
[1758502946002,0.38319,114400.0,114390.0,0.90101]
[1758502946204,0.63319,114400.0,114390.0,0.90097]
[1758502946404,0.64629,114400.0,114390.0,0.90097]
[1758502946704,0.99590266,114400.0,114380.0,0.01427]
[1758502946905,0.99590266,114400.0,114380.0,0.0371]
[1758502946906,0.38319,114390.0,114380.0,0.0371]
[1758502947105,0.38329,114390.0,114380.0,0.90138]
[1758502947698,0.72378266,114390.0,114380.0,0.90138]
[1758502947899,0.38329,114390.0,114380.0,0.90134]
[1758502949500,0.40029,114390.0,114380.0,0.90134]
[1758502950299,0.40941,114390.0,114380.0,0.0008]
[1758502950506,0.99990266,114390.0,114380.0,0.86408]
[1758502950803,0.99078266,114390.0,114380.0,0.03693]
[1758502956498,0.65029,114390.0,114380.0,0.03693]
[1758502956808,0.40029,114390.0,114380.0,0.03693]
[1758502957310,0.74078266,114390.0,114380.0,0.03693]
[1758502958318,0.40029,114390.0,114380.0,0.03693]
[1758502958610,0.74078266,114390.0,114380.0,0.03693]
[1758502958804,0.74078266,114390.0,114380.0,0.0004]
[1758502959005,0.74078266,114390.0,114380.0,0.03653]
[1758502959207,0.74078266,114390.0,114380.0,0.03693]
[1758502959406,0.40029,114390.0,114380.0,0.03693]
[1758502959611,0.40029,114390.0,114380.0,0.46478716]
[1758502959915,0.0171,114390.0,114380.0,0.71478716]
[1758502960211,0.0171,114390.0,114380.0,1.07558716]
[1758502961111,0.0171,114390.0,114380.0,0.71478716]
[1758502961607,0.3609,114390.0,114380.0,0.62742266]
[1758502961813,0.3609,114390.0,114380.0,0.90033]
[1758502961814,0.39629,114390.0,114380.0,0.90033]
[1758502962312,0.39629,114390.0,114380.0,0.9876945]
[1758502963011,0.3739,114390.0,114380.0,1.32818716]
[1758502964718,0.39629,114390.0,114380.0,0.90025]
[1758502965214,0.3739,114390.0,114380.0,0.9876148]
[1758502965812,0.3739,114390.0,114380.0,1.32810746]
[1758502966008,0.3739,114390.0,114380.0,1.57810746]
[1758502967315,0.3739,114390.0,114380.0,0.71478746]
[1758502967514,0.3739,114390.0,114380.0,1.57778746]
[1758502968807,0.0131,114390.0,114380.0,1.57778746]
[1758502970312,0.43023479,114410.0,114380.0,1.93858746]
[1758502970613,0.06943479,114410.0,114400.0,0.46437196]
[1758502970908,0.3608,114420.0,114410.0,0.03653]
[1758502971116,0.38319,114430.0,114420.0,0.03653]
[1758502971407,0.43083744,114430.0,114420.0,1.23974266]
[1758502972103,0.43083744,114430.0,114420.0,1.32707666]
[1758502972313,0.07003744,114430.0,114420.0,1.32707666]
[1758502972610,0.3608,114430.0,114420.0,1.32707666]
[1758502973314,0.3778,114430.0,114420.0,1.32707666]
[1758502973505,0.3778,114430.0,114420.0,0.986584]
[1758502973705,0.3778,114430.0,114420.0,1.32707666]
[1758502974007,0.3778,114430.0,114420.0,1.32695666]
[1758502974715,0.39619,114430.0,114420.0,0.89901]
[1758502974904,0.64619,114430.0,114420.0,0.89933]
[1758502975816,0.71434813,114430.0,114420.0,0.89925]
[1758502976518,1.05484079,114430.0,114420.0,0.89925]
[1758502976704,0.71434813,114430.0,114420.0,0.89925]
[1758502976912,0.71434813,114430.0,114420.0,0.89921]
[1758502977518,0.71434813,114430.0,114420.0,0.89873]
[1758502977711,0.71434813,114430.0,114420.0,0.03693]
[1758502978024,0.71434813,114430.0,114420.0,0.89869]
[1758502978213,0.44195813,114430.0,114420.0,1.32691646]
[1758502978609,0.44195813,114430.0,114420.0,0.46475646]
[1758502978910,0.46459813,114430.0,114420.0,0.89901]
[1758502979110,0.46459813,114430.0,114420.0,0.9863438]
[1758502979713,0.46459813,114430.0,114420.0,0.89901]
[1758502980515,0.44195813,114430.0,114420.0,0.89901]
[1758502980720,0.44195813,114430.0,114420.0,0.37742266]
[1758502980920,0.44195813,114430.0,114420.0,1.23934266]
[1758502981111,0.3738,114430.0,114420.0,1.57667636]
[1758502981310,0.3738,114430.0,114420.0,1.48934266]
[1758502981512,0.3738,114430.0,114420.0,1.57667636]
[1758502981709,0.3738,114430.0,114420.0,1.48934266]
[1758502981907,0.3738,114430.0,114420.0,0.62742266]
[1758502982119,0.3738,114430.0,114420.0,1.48922266]
[1758502982616,0.3738,114430.0,114420.0,1.48918266]
[1758502982811,0.39644,114430.0,114420.0,0.89869]
[1758502983216,0.39644,114430.0,114420.0,0.03653]
[1758502983623,0.98693266,114430.0,114420.0,0.89861]
[1758502983923,0.65787,114430.0,114420.0,0.86164]
[1758502984119,0.65787,114430.0,114420.0,0.86204]
[1758502984318,0.71477992,114430.0,114420.0,0.89758]
[1758502984620,1.05527258,114430.0,114420.0,0.89798]
[1758502984811,1.05527258,114430.0,114420.0,0.0004]
[1758502985015,0.02264,114410.0,114400.0,1.85518]
[1758502985220,0.74424,114410.0,114400.0,1.85598]
[1758502985523,0.74424,114410.0,114400.0,2.7167]
[1758502985817,0.74424,114410.0,114400.0,1.85558]
[1758502986021,0.74424,114410.0,114400.0,2.71706]
[1758502986522,0.74424,114410.0,114400.0,0.0004]
[1758502986523,1.35316266,114410.0,114400.0,0.0004]
[1758502986725,1.35316266,114410.0,114400.0,0.86188]
[1758502987021,1.00124,114410.0,114400.0,0.89742]
[1758502987207,1.00124,114410.0,114400.0,0.89782]
[1758502987621,1.34173266,114410.0,114400.0,0.89782]
[1758502988017,1.00124,114410.0,114400.0,0.89782]
[1758502988219,0.74424,114410.0,114400.0,0.89782]
[1758502988414,0.75424,114410.0,114400.0,0.89782]
[1758502988819,0.74424,114410.0,114400.0,0.89782]
[1758502989018,0.74434,114410.0,114400.0,0.89782]
[1758502989325,0.76134,114410.0,114400.0,0.89782]
[1758502989820,0.74434,114410.0,114400.0,0.89782]
[1758502990027,0.75834,114410.0,114400.0,0.89782]
[1758502993532,0.75834,114410.0,114400.0,0.03634]
[1758502993730,0.75834,114410.0,114400.0,0.8973]
[1758502994129,0.7357,114410.0,114400.0,0.8973]
[1758502994326,0.75733,114410.0,114400.0,0.8973]
[1758502994727,0.7357,114410.0,114400.0,1.25518]
[1758502995032,0.3749,114410.0,114400.0,1.50518]
[1758502995429,0.75733,114410.0,114400.0,1.14722]
[1758502996024,0.75733,114410.0,114400.0,1.2345693]
[1758502996227,0.75333,114410.0,114400.0,1.2345693]
[1758502996423,0.75333,114410.0,114400.0,1.14722]
[1758502996733,0.75333,114410.0,114400.0,1.2345693]
[1758502996934,0.75333,114410.0,114400.0,1.14722]
[1758502997125,0.75333,114410.0,114400.0,1.2345693]
[1758502997327,0.75333,114410.0,114400.0,1.14722]
[1758502997634,0.75333,114410.0,114400.0,0.28634]
[1758502997837,0.75333,114410.0,114400.0,1.14702]
[1758502998337,0.75333,114410.0,114400.0,1.2343693]
[1758502998931,0.7317,114410.0,114400.0,1.2343693]
[1758502999338,0.3709,114410.0,114400.0,1.2343693]
[1758502999539,0.3709,114410.0,114400.0,1.5049]
[1758503001837,0.0101,114410.0,114400.0,1.5049]
[1758503002739,0.0101,114410.0,114400.0,0.3736893]
[1758503002937,0.0071,114410.0,114400.0,1.2340093]
[1758503003242,0.0071,114410.0,114400.0,1.50454]
[1758503003443,0.3679,114410.0,114400.0,0.9839693]
[1758503003647,0.38953,114410.0,114400.0,0.9839693]
[1758503004036,0.38953,114410.0,114400.0,0.9835693]
[1758503004237,0.3679,114410.0,114400.0,0.9839693]
[1758503004435,0.3679,114410.0,114400.0,0.1236893]
[1758503004639,0.38917,114410.0,114400.0,0.9838493]
[1758503004840,0.3679,114410.0,114400.0,1.25438]
[1758503005440,0.3679,114410.0,114400.0,1.25434]
[1758503006848,0.3679,114410.0,114400.0,0.39422]
[1758503007045,0.3679,114410.0,114400.0,1.25418]
[1758503008045,0.0071,114410.0,114400.0,1.86498]
[1758503008445,0.40169236,114440.0,114430.0,0.03576]
[1758503008648,0.40169236,114440.0,114430.0,0.9829263]
[1758503008649,0.42296236,114440.0,114430.0,0.9829263]
[1758503008842,0.40169236,114440.0,114430.0,0.9829263]
[1758503009049,0.40169236,114440.0,114430.0,1.253457]
[1758503009551,0.40169236,114440.0,114430.0,0.9829263]
[1758503009848,0.41869236,114440.0,114430.0,0.9829263]
[1758503011250,0.43996236,114440.0,114430.0,0.9829263]
[1758503011453,0.43996236,114440.0,114430.0,0.03576]
[1758503011951,0.83506236,114440.0,114430.0,0.89572]
[1758503012147,0.83506236,114440.0,114430.0,0.03616]
[1758503012355,0.84216236,114440.0,114430.0,0.88212]
[1758503013057,0.84216236,114440.0,114430.0,0.88252]
[1758503013255,0.84216236,114440.0,114430.0,0.89568]
[1758503014453,0.83506236,114440.0,114430.0,0.9829663]
[1758503017663,0.83506236,114440.0,114430.0,0.89536]
[1758503017852,0.83506236,114440.0,114430.0,0.89524]
[1758503019262,0.58506236,114440.0,114430.0,0.89524]
[1758503019560,0.58506236,114440.0,114430.0,0.03616]
[1758503019758,0.58506236,114440.0,114430.0,0.89516]
[1758503020354,0.58506236,114440.0,114430.0,0.9824863]
[1758503020548,0.58506236,114440.0,114430.0,0.9823263]
[1758503021057,0.43996236,114440.0,114430.0,0.9822863]
[1758503021468,0.41869236,114440.0,114430.0,0.9822863]
[1758503021760,0.43996236,114440.0,114430.0,0.9822863]
[1758503022361,0.43996236,114440.0,114430.0,0.89496]
[1758503022762,0.43996236,114440.0,114430.0,0.9822863]
[1758503024165,0.41869236,114440.0,114430.0,1.502817]
[1758503024365,0.41869236,114440.0,114430.0,1.2322863]
[1758503024665,0.43996236,114440.0,114430.0,0.3734863]
[1758503024876,0.43996236,114440.0,114430.0,1.2320063]
[1758503025362,0.41869236,114440.0,114430.0,1.2320063]
[1758503025961,0.3778,114440.0,114430.0,1.502537]
[1758503026167,0.017,114440.0,114430.0,1.863337]
[1758503026666,0.017,114440.0,114430.0,3.363337]
[1758503028159,0.017,114440.0,114430.0,2.504817]
[1758503028357,0.017,114440.0,114430.0,3.362937]
[1758503028668,0.40060299,114460.0,114450.0,0.123071]
[1758503028966,0.37933299,114460.0,114450.0,1.2517217]
[1758503029967,0.01853299,114460.0,114450.0,1.2517217]
[1758503030168,0.3608,114460.0,114450.0,1.2517217]
[1758503030480,0.38626746,114460.0,114450.0,1.2517217]
[1758503031063,0.007,114460.0,114450.0,1.5017217]
[1758503031468,0.007,114460.0,114450.0,1.8625217]
[1758503033071,0.3678,114460.0,114450.0,0.3936017]
[1758503033373,0.3678,114460.0,114450.0,0.981111]
[1758503033572,0.38907,114460.0,114450.0,0.981071]
[1758503033869,0.38907,114460.0,114450.0,0.980671]
[1758503033870,0.3678,114460.0,114450.0,0.980671]
[1758503034065,0.3678,114460.0,114450.0,0.981071]
[1758503034466,0.3678,114460.0,114450.0,1.2516017]
[1758503034659,0.007,114460.0,114450.0,1.6124017]
[1758503037373,0.007,114460.0,114450.0,1.6120417]
[1758503037579,0.3678,114460.0,114450.0,0.980711]
[1758503037877,0.3678,114460.0,114450.0,1.2512417]
[1758503038670,0.007,114460.0,114450.0,1.2512417]
[1758503038870,0.007,114460.0,114450.0,1.6120417]
[1758503039769,0.007,114460.0,114450.0,1.2512417]
[1758503040582,0.007,114460.0,114450.0,1.8620417]
[1758503040972,0.007,114460.0,114450.0,1.591151]
[1758503041280,0.007,114460.0,114450.0,1.0048017]
[1758503041474,0.007,114460.0,114450.0,1.5008417]
[1758503041676,0.3678,114460.0,114450.0,0.980271]
[1758503041973,0.3678,114460.0,114450.0,0.979871]
[1758503042169,0.39103,114460.0,114450.0,0.123471]
[1758503042373,0.3678,114460.0,114450.0,1.2508017]
[1758503042575,0.3678,114460.0,114450.0,0.3940017]
[1758503042775,0.3678,114460.0,114450.0,1.2507617]
[1758503042974,0.3678,114460.0,114450.0,1.2507217]
[1758503043173,0.64103,114460.0,114450.0,0.9801912]
[1758503043375,0.66311816,114460.0,114450.0,0.89244]
[1758503043577,0.66311816,114460.0,114450.0,0.9797512]
[1758503043782,0.66311816,114460.0,114450.0,0.9801512]
[1758503044979,0.63988816,114460.0,114450.0,0.9801512]
[1758503045185,0.66311816,114460.0,114450.0,0.9801512]
[1758503045583,0.007,114460.0,114450.0,1.2506819]
[1758503045783,0.007,114460.0,114450.0,1.8614819]
[1758503045977,1.16600561,114490.0,114480.0,0.1222983]
[1758503045978,0.38096895,114490.0,114480.0,0.1222983]
[1758503046179,0.4030695,114490.0,114480.0,0.9787783]
[1758503046378,0.39962597,114490.0,114480.0,1.249309]
[1758503046688,0.3608,114510.0,114500.0,0.122283]
[1758503046890,0.3608,114510.0,114500.0,1.2492537]
[1758503047278,0.3608,114520.0,114510.0,0.03501]
[1758503047480,0.3608,114520.0,114510.0,0.3928061]
[1758503047982,0.37921282,114530.0,114520.0,0.1222678]
[1758503048182,0.40131011,114530.0,114520.0,0.9785478]
[1758503048383,0.38289729,114530.0,114520.0,1.2490785]
[1758503048584,0.3608,114530.0,114520.0,1.2490785]
[1758503049380,0.3608,114540.0,114530.0,0.1222601]
[1758503049682,0.3608,114540.0,114530.0,0.3927908]
[1758503050083,0.3608,114540.0,114530.0,0.1222601]
[1758503050282,0.3608,114540.0,114530.0,1.2489108]
[1758503050476,0.3668,114540.0,114530.0,0.1222601]
[1758503050794,0.63934,114540.0,114530.0,0.89093]
[1758503051083,0.66139851,114540.0,114530.0,0.89133]
[1758503051282,0.66139851,114540.0,114530.0,0.89129]
[1758503051477,0.66139851,114540.0,114530.0,0.89085]
[1758503051682,0.66139851,114540.0,114530.0,0.03541]
[1758503051879,0.66139851,114540.0,114530.0,0.89125]
[1758503052280,0.63934,114540.0,114530.0,0.89125]
[1758503052485,0.63934,114540.0,114530.0,0.9785002]
[1758503053388,0.63934,114540.0,114530.0,0.9785001]
[1758503053589,0.63934,114540.0,114530.0,1.31814896]
[1758503053787,0.38934,114540.0,114530.0,1.31814896]
[1758503054590,0.3668,114540.0,114530.0,1.31814896]
[1758503055784,0.63934,114540.0,114530.0,0.9780601]
[1758503055980,0.3668,114540.0,114530.0,1.31770896]
[1758503057689,0.3668,114540.0,114530.0,1.56770896]
[1758503057896,0.006,114540.0,114530.0,1.56770896]
[1758503058184,0.3608,114560.0,114550.0,0.0872353]
[1758503058490,0.3608,114560.0,114550.0,1.31618416]
[1758503059188,0.3608,114560.0,114550.0,0.46102416]
[1758503059388,0.3608,114560.0,114550.0,1.31610416]
[1758503060288,0.3708,114560.0,114550.0,1.31610416]
[1758503061293,0.3708,114560.0,114550.0,1.31586416]
[1758503061481,0.3708,114560.0,114550.0,0.46102416]
[1758503061982,0.3708,114560.0,114550.0,1.31578416]
[1758503062486,0.3708,114560.0,114550.0,1.31574416]
[1758503062885,0.3708,114560.0,114550.0,1.31566416]
[1758503063482,0.3708,114560.0,114550.0,0.46102416]
[1758503063786,0.3708,114560.0,114550.0,1.31558416]
[1758503064191,0.3708,114560.0,114550.0,0.9759353]
[1758503064393,0.3708,114560.0,114550.0,1.31558416]
[1758503064995,0.3708,114560.0,114550.0,1.65523302]
[1758503065188,0.01,114560.0,114550.0,2.26603302]
[1758503065687,0.3608,114580.0,114570.0,0.1235101]
[1758503065890,0.3608,114580.0,114570.0,1.31751896]
[1758503066394,0.3608,114580.0,114570.0,0.46315896]
[1758503066994,0.3748,114580.0,114570.0,1.31743896]
[1758503067394,0.3748,114580.0,114570.0,0.9777901]
[1758503067593,0.3748,114580.0,114570.0,1.31743896]
[1758503067794,0.3748,114580.0,114570.0,1.31739896]
[1758503068194,0.3748,114580.0,114570.0,1.31727896]
[1758503068595,0.3748,114580.0,114570.0,1.31723896]
[1758503068785,0.3748,114580.0,114570.0,0.37593886]
[1758503068988,0.64642,114580.0,114570.0,0.03629]
[1758503069189,0.64642,114580.0,114570.0,0.89033]
[1758503069388,0.64642,114580.0,114570.0,0.89073]
[1758503069588,0.3748,114580.0,114570.0,1.31759896]
[1758503070184,0.3748,114580.0,114570.0,0.1239101]
[1758503070389,0.3748,114580.0,114570.0,1.31747896]
[1758503070696,0.3748,114580.0,114570.0,0.9778301]
[1758503071001,0.3748,114580.0,114570.0,1.31747896]
[1758503071791,0.3608,114580.0,114570.0,1.32347896]
[1758503072491,0.3608,114590.0,114580.0,0.1235025]
[1758503072786,0.3608,114590.0,114580.0,0.46315136]
[1758503073298,0.3608,114600.0,114590.0,0.1234949]
[1758503073491,0.3608,114600.0,114590.0,1.31682376]
[1758503074699,0.63442,114600.0,114590.0,0.9770549]
[1758503074998,0.63442,114600.0,114590.0,1.31670376]
[1758503075200,0.6128,114600.0,114590.0,1.31710376]
[1758503075994,0.3628,114600.0,114590.0,0.9774549]
[1758503076196,0.3628,114600.0,114590.0,1.31710376]
[1758503077290,0.3628,114600.0,114590.0,1.56710376]
[1758503077801,0.002,114600.0,114590.0,1.56710376]
[1758503079004,0.002,114600.0,114590.0,1.2274549]
[1758503079195,0.002,114600.0,114590.0,1.56710376]
[1758503079398,0.002,114600.0,114590.0,1.31710376]
[1758503081894,0.002,114600.0,114590.0,0.9774549]
[1758503082093,0.002,114600.0,114590.0,1.31710376]
[1758503083908,0.40646227,114600.0,114590.0,0.46314376]
[1758503084200,0.40646227,114600.0,114590.0,1.31918376]
[1758503084407,0.40646227,114600.0,114590.0,1.31878376]
[1758503084702,0.65646227,114600.0,114590.0,1.31906376]
[1758503085013,0.65646227,114600.0,114590.0,0.03629]
[1758503085314,0.65646227,114600.0,114590.0,1.31838396]
[1758503085507,0.65646227,114600.0,114590.0,0.89185]
[1758503085910,0.65646227,114600.0,114590.0,0.89145]
[1758503086206,0.65646227,114600.0,114590.0,0.89185]
[1758503086405,0.65646227,114600.0,114590.0,1.31870406]
[1758503087808,0.65646227,114600.0,114590.0,0.9790552]
[1758503088009,0.65646227,114600.0,114590.0,1.31870406]
[1758503089009,0.65646227,114600.0,114590.0,0.89185]
[1758503089010,0.66758227,114600.0,114590.0,0.89185]
[1758503089311,0.66758227,114600.0,114590.0,0.85556]
[1758503089517,0.69849737,114600.0,114590.0,0.85516]
[1758503089705,1.08438266,114600.0,114590.0,0.0004]
[1758503089902,0.02872,114590.0,114580.0,0.85622]
[1758503090210,0.42042148,114590.0,114580.0,0.85612]
[1758503090508,0.44246375,114590.0,114580.0,0.85612]
[1758503090696,0.03473,114580.0,114570.0,0.0009]
[1758503090901,0.41757227,114580.0,114570.0,0.85576]
[1758503091210,0.51971027,114580.0,114570.0,0.85616]
[1758503091506,0.51971027,114580.0,114570.0,0.9663304]
[1758503091710,0.51971027,114580.0,114570.0,0.9796704]
[1758503092205,0.51971027,114580.0,114570.0,0.89245]
[1758503092510,0.48880879,114580.0,114570.0,0.89245]
[1758503093307,0.47569879,114580.0,114570.0,1.23509886]
[1758503093508,0.47569879,114580.0,114570.0,0.89545]
[1758503093805,0.47569879,114580.0,114570.0,1.23509886]
[1758503094006,0.47569879,114580.0,114570.0,1.32231926]
[1758503094313,0.45407879,114580.0,114570.0,1.32231926]
[1758503095909,0.43203652,114580.0,114570.0,1.32231926]
[1758503096111,0.3608,114580.0,114570.0,1.32231926]
[1758503096311,0.38278191,114580.0,114570.0,1.32231926]
[1758503097212,0.3608,114580.0,114570.0,1.32231926]
[1758503098109,0.40574208,114580.0,114570.0,0.87983]
[1758503098309,1.00285094,114580.0,114570.0,0.02635]
[1758503098509,1.00285094,114580.0,114570.0,0.85648]
[1758503098709,1.00285094,114580.0,114570.0,0.85688]
[1758503098903,1.00285094,114580.0,114570.0,0.003]
[1758503099109,1.00285094,114580.0,114570.0,0.0034]
[1758503099415,1.00285094,114580.0,114570.0,0.003]
[1758503099717,1.00285094,114580.0,114570.0,0.0034]
[1758503099906,0.66420208,114580.0,114570.0,0.02186]
[1758503100333,0.48226401,114580.0,114570.0,0.02186]
[1758503100516,0.82490582,114580.0,114570.0,0.0004]
[1758503100818,1.07490582,114580.0,114570.0,0.0004]
[1758503101209,0.48525696,114580.0,114570.0,0.0004]
[1758503101407,0.48525696,114580.0,114570.0,0.02186]
[1758503101612,0.82490582,114580.0,114570.0,0.0004]
[1758503102014,0.84483155,114580.0,114570.0,0.0004]
[1758503102614,0.50518269,114580.0,114570.0,0.0004]
[1758503103122,0.84083155,114580.0,114570.0,0.0004]
[1758503103329,0.84483155,114580.0,114570.0,0.0004]
[1758503104021,1.09483155,114580.0,114570.0,0.0004]
[1758503104417,0.01274,114570.0,114560.0,0.0001]
[1758503104626,0.73623886,114570.0,114550.0,0.86776]